bitfinex-derivatives/quotes_BTCF0:USTF0_20241210
["timestamp","ask_amount","ask_price","bid_price","bid_amount"]
[1733864085781,0.052758,96550.0,96546.0,0.05176]
[1733864086181,0.001,96550.0,96546.0,0.05176]
[1733864086384,0.05176,96546.0,96545.0,0.36368]
[1733864086582,0.05176,96546.0,96545.0,0.3628]
[1733864086787,0.05176,96546.0,96545.0,0.3608]
[1733864088392,0.05176,96546.0,96545.0,0.3628]
[1733864088592,0.05276,96546.0,96545.0,0.3628]
[1733864088988,0.06280328,96546.0,96545.0,0.3628]
[1733864089397,0.42360328,96546.0,96545.0,0.002]
[1733864091194,0.37184328,96546.0,96536.0,0.051765]
[1733864091390,0.52635126,96546.0,96545.0,0.001]
[1733864091595,0.42360328,96546.0,96545.0,0.001]
[1733864092193,0.051766,96535.0,96532.0,0.051767]
[1733864092595,0.051766,96535.0,96531.0,0.3608]
[1733864092596,0.051767,96532.0,96531.0,0.3608]
[1733864093300,0.048767,96532.0,96531.0,0.3608]
[1733864093797,0.051771,96526.0,96523.0,0.0446]
[1733864093989,0.051771,96526.0,96523.0,0.096372]
[1733864094191,0.051771,96526.0,96523.0,0.0446]
[1733864094394,0.051771,96526.0,96520.0,0.01031497]
[1733864094794,0.048771,96526.0,96520.0,0.01031497]
[1733864095402,0.049771,96526.0,96520.0,0.01031497]
[1733864095703,0.049771,96526.0,96525.0,0.0040989]
[1733864096698,0.001,96526.0,96525.0,0.0040989]
[1733864096902,0.001,96526.0,96525.0,0.0558699]
[1733864097595,0.3608,96542.0,96525.0,0.3648989]
[1733864097791,0.3608,96542.0,96541.0,0.051762]
[1733864098293,0.3608,96542.0,96535.0,0.051765]
[1733864098294,0.051766,96536.0,96535.0,0.051765]
[1733864100192,0.051766,96536.0,96530.0,0.3608]
[1733864100193,0.00156001,96542.0,96541.0,0.051762]
[1733864100404,0.00010487,96555.0,96541.0,0.3608]
[1733864100702,0.00010487,96555.0,96554.0,0.412556]
[1733864101201,0.051744,96576.0,96567.0,0.051749]
[1733864101390,0.10274798,96590.0,96567.0,0.051749]
[1733864101593,0.11269083,96580.0,96563.0,0.3608]
[1733864101790,0.051745,96576.0,96575.0,0.051744]
[1733864102393,0.10274798,96580.0,96563.0,0.3608]
[1733864102394,0.051748,96569.0,96568.0,0.051748]
[1733864102996,0.051748,96569.0,96563.0,0.3618]
[1733864102997,0.051745,96575.0,96574.0,0.051745]
[1733864103199,0.051745,96575.0,96574.0,0.412545]
[1733864103999,0.05175,96564.0,96563.0,0.18416379]
[1733864104205,0.412545,96575.0,96545.0,0.00155361]
[1733864104206,0.051755,96556.0,96545.0,0.00155361]
[1733864104401,0.20549596,96573.0,96537.0,0.051764]
[1733864104402,0.051765,96538.0,96537.0,0.051764]
[1733864104603,0.3608,96554.0,96531.0,0.0332]
[1733864104604,0.10274798,96541.0,96531.0,0.0332]
[1733864104809,0.10274798,96541.0,96525.0,9.89e-05]
[1733864104810,0.051771,96526.0,96525.0,9.89e-05]
[1733864105101,0.412571,96526.0,96525.0,9.89e-05]
[1733864106099,0.412571,96526.0,96525.0,0.0030989]
[1733864107508,0.412571,96526.0,96511.0,0.01037068]
[1733864107509,0.051778,96512.0,96511.0,0.01037068]
[1733864107805,0.051782,96505.0,96502.0,0.051783]
[1733864108004,0.051784,96501.0,96495.0,0.0302]
[1733864108216,0.051784,96501.0,96500.0,0.151784]
[1733864108396,0.05186114,96501.0,96500.0,0.162115]
[1733864108806,0.04286114,96501.0,96500.0,0.162115]
[1733864109107,0.03986114,96501.0,96500.0,0.162115]
[1733864109903,0.04086114,96501.0,96500.0,0.165115]
[1733864110103,0.00107714,96501.0,96500.0,0.165115]
[1733864110617,0.05386114,96501.0,96500.0,0.165115]
[1733864111105,0.00207714,96501.0,96500.0,0.165115]
[1733864111299,0.00207714,96501.0,96500.0,0.154784]
[1733864112102,0.021134,96526.0,96500.0,0.515584]
[1733864112301,0.348,96530.0,96516.0,0.3608]
[1733864112495,0.00052001,96530.0,96529.0,0.3608]
[1733864112701,0.00052001,96530.0,96529.0,0.412569]
[1733864113109,0.051766,96536.0,96535.0,0.051766]
[1733864114309,0.001,96536.0,96535.0,0.051766]
[1733864115415,0.052765,96536.0,96535.0,0.051766]
[1733864118914,0.051767,96533.0,96529.0,0.3608]
[1733864119511,0.051767,96533.0,96531.0,0.051768]
[1733864120013,0.051772,96523.0,96519.0,0.0316]
[1733864120206,0.3608,96532.0,96501.0,0.35791497]
[1733864120207,0.051775,96518.0,96501.0,0.24404076]
[1733864120406,0.051775,96518.0,96517.0,0.051775]
[1733864120613,0.15459909,96520.0,96511.0,0.051778]
[1733864120815,0.3608,96516.0,96506.0,0.0314]
[1733864121006,0.051778,96512.0,96511.0,0.051778]
[1733864121211,0.3608,96516.0,96511.0,0.051778]
[1733864121212,0.051778,96513.0,96511.0,0.051778]
[1733864122215,0.001,96512.0,96511.0,0.051778]
[1733864122416,0.001,96512.0,96511.0,0.412578]
[1733864122609,0.001,96523.0,96522.0,0.051773]
[1733864122804,0.051763,96540.0,96524.0,0.051771]
[1733864123116,0.3608,96558.0,96536.0,0.3608]
[1733864123307,0.01036471,96558.0,96545.0,0.3608]
[1733864123506,0.15615343,96560.0,96545.0,0.3608]
[1733864123715,0.051754,96557.0,96533.0,0.60484076]
[1733864123915,0.051755,96555.0,96554.0,0.051755]
[1733864126216,0.054755,96555.0,96554.0,0.051755]
[1733864126621,0.003,96555.0,96554.0,0.051755]
[1733864127716,0.003,96555.0,96541.0,0.00104]
[1733864127920,0.051768,96531.0,96519.0,0.60484076]
[1733864128218,0.051768,96531.0,96517.0,0.051775]
[1733864128219,0.051775,96518.0,96517.0,0.051775]
[1733864129715,0.051775,96518.0,96517.0,0.055775]
[1733864130223,0.052775,96518.0,96517.0,0.055775]
[1733864131610,0.052775,96518.0,96517.0,0.004]
[1733864135418,0.052775,96518.0,96503.0,0.051783]
[1733864135623,0.051783,96504.0,96503.0,0.051783]
[1733864136722,0.052783,96504.0,96503.0,0.051783]
[1733864137419,0.052783,96504.0,96503.0,0.052783]
[1733864138423,0.053783,96504.0,96503.0,0.052783]
[1733864138722,0.002,96504.0,96503.0,0.052783]
[1733864138922,0.3608,96510.0,96509.0,0.05178]
[1733864139713,0.051776,96516.0,96503.0,0.051783]
[1733864140016,0.051776,96516.0,96515.0,0.051776]
[1733864140927,0.052776,96516.0,96515.0,0.051776]
[1733864141731,0.001,96516.0,96515.0,0.051776]
[1733864142221,0.051776,96516.0,96515.0,0.053776]
[1733864142423,0.052776,96516.0,96515.0,0.002]
[1733864143816,0.051784,96501.0,96500.0,0.1]
[1733864145526,0.051784,96501.0,96500.0,0.102]
[1733864146124,0.052784,96501.0,96500.0,0.102]
[1733864147830,0.052784,96501.0,96500.0,0.153784]
[1733864147831,0.001,96501.0,96500.0,0.153784]
[1733864148224,0.052784,96501.0,96500.0,0.102]
[1733864148522,0.052784,96501.0,96500.0,0.153784]
[1733864149036,0.052784,96501.0,96500.0,0.102]
[1733864149331,0.06278153,96501.0,96500.0,0.102]
[1733864150135,0.051789,96492.0,96491.0,0.00155422]
[1733864150432,0.412589,96492.0,96491.0,0.00155422]
[1733864152327,0.413589,96492.0,96491.0,0.00155422]
[1733864152633,0.052789,96492.0,96491.0,0.00155422]
[1733864152818,0.001,96492.0,96490.0,0.051789]
[1733864153219,0.3608,96517.0,96502.0,0.051783]
[1733864153532,0.36132001,96517.0,96504.0,0.3608]
[1733864153722,0.051781,96506.0,96504.0,0.3608]
[1733864155534,0.052781,96506.0,96504.0,0.3608]
[1733864156526,0.051787,96494.0,96492.0,0.0317]
[1733864156726,0.05179,96488.0,96486.0,0.3608]
[1733864157122,0.05179,96488.0,96481.0,0.3608]
[1733864157123,0.3608,96491.0,96481.0,0.3608]
[1733864157433,0.051792,96484.0,96483.0,0.051792]
[1733864158527,0.052792,96484.0,96483.0,0.051792]
[1733864159525,0.001,96484.0,96483.0,0.051792]
[1733864160230,0.0927371,96500.0,96483.0,0.051792]
[1733864160432,0.15485049,96513.0,96498.0,0.3608]
[1733864160433,0.0927371,96508.0,96498.0,0.3608]
[1733864160728,0.0927371,96508.0,96491.0,0.13086908]
[1733864160729,0.6008,96499.0,96491.0,0.13086908]
[1733864161039,0.05181,96442.0,96441.0,0.3734845]
[1733864161230,0.05181,96442.0,96433.0,0.46088477]
[1733864161231,0.051815,96434.0,96433.0,0.0323]
[1733864161431,0.412615,96434.0,96433.0,0.120401]
[1733864161627,0.412615,96434.0,96433.0,0.09327396]
[1733864161824,0.412615,96434.0,96433.0,0.0323]
[1733864162038,0.051816,96431.0,96430.0,0.04148]
[1733864162521,0.051816,96431.0,96430.0,0.129581]
[1733864163925,0.3608,96442.0,96430.0,0.04148]
[1733864164125,0.3608,96442.0,96441.0,0.088101]
[1733864164628,0.3608,96442.0,96441.0,0.129581]
[1733864165433,0.3618,96442.0,96441.0,0.129581]
[1733864165630,0.3608,96448.0,96441.0,0.129581]
[1733864165823,0.15490504,96460.0,96447.0,0.088101]
[1733864166026,0.15490504,96460.0,96459.0,0.088101]
[1733864166027,0.20670604,96460.0,96459.0,0.088101]
[1733864166230,0.06218182,96460.0,96459.0,0.088101]
[1733864166427,0.051801,96460.0,96459.0,0.088101]
[1733864167533,0.055801,96460.0,96459.0,0.088101]
[1733864169046,0.055801,96460.0,96423.0,0.051821]
[1733864169047,0.051803,96457.0,96423.0,0.051821]
[1733864169236,0.051818,96428.0,96425.0,0.05337454]
[1733864169534,0.3608,96434.0,96425.0,0.00155554]
[1733864169737,0.3608,96434.0,96426.0,0.04148]
[1733864169931,0.051818,96428.0,96426.0,0.04148]
[1733864171827,0.3608,96434.0,96425.0,0.00155554]
[1733864172028,0.412619,96426.0,96425.0,0.00155554]
[1733864172335,0.412619,96426.0,96411.0,0.0302]
[1733864172336,0.051827,96412.0,96411.0,0.0302]
[1733864172642,0.412627,96412.0,96411.0,0.07168]
[1733864172834,0.412627,96412.0,96411.0,0.04148]
[1733864173144,0.412627,96412.0,96411.0,0.04928]
[1733864173734,0.3608,96412.0,96411.0,0.04928]
[1733864174532,0.3618,96412.0,96411.0,0.04928]
[1733864176437,0.3628,96412.0,96411.0,0.04928]
[1733864177839,0.3608,96426.0,96425.0,0.05182]
[1733864178038,0.400135,96433.0,96432.0,0.051816]
[1733864178234,0.34832,96433.0,96422.0,0.3608]
[1733864178560,0.34832,96433.0,96431.0,0.051816]
[1733864178837,0.34832,96433.0,96423.0,0.07388]
[1733864178838,0.15490504,96440.0,96423.0,0.10508]
[1733864179040,0.051811,96441.0,96440.0,0.051811]
[1733864179938,0.3608,96444.0,96436.0,0.04148]
[1733864180138,0.001556,96448.0,96436.0,0.04148]
[1733864180439,0.004,96441.0,96439.0,0.051812]
[1733864180831,0.004,96441.0,96440.0,0.003]
[1733864181032,0.001,96444.0,96440.0,0.003]
[1733864181237,0.001,96444.0,96439.0,0.051812]
[1733864181238,0.3608,96443.0,96439.0,0.051812]
[1733864181543,0.051811,96442.0,96441.0,0.051811]
[1733864183143,0.3608,96443.0,96441.0,0.051811]
[1733864183448,0.001556,96448.0,96441.0,0.051811]
[1733864183739,0.001556,96448.0,96447.0,0.051808]
[1733864183940,0.05181,96442.0,96441.0,0.054811]
[1733864184248,0.051813,96437.0,96436.0,0.093294]
[1733864184744,0.05181,96444.0,96436.0,0.04148]
[1733864185047,0.05181,96444.0,96442.0,0.05181]
[1733864186255,0.052813,96437.0,96436.0,0.04448]
[1733864186539,0.053813,96437.0,96436.0,0.003]
[1733864186743,0.053813,96437.0,96435.0,0.051814]
[1733864186744,0.052813,96437.0,96435.0,0.051814]
[1733864187132,0.051815,96434.0,96433.0,0.04148]
[1733864187340,0.09253622,96441.0,96431.0,0.0312]
[1733864187542,0.051816,96433.0,96431.0,0.083016]
[1733864187742,0.051818,96428.0,96420.0,0.3608]
[1733864187941,0.051818,96428.0,96420.0,0.051822]
[1733864188239,0.051818,96428.0,96421.0,0.051822]
[1733864188837,0.051818,96428.0,96412.0,0.0306]
[1733864189148,0.051818,96428.0,96422.0,0.051821]
[1733864189337,0.051818,96428.0,96425.0,0.051819]
[1733864189744,0.14471046,96428.0,96425.0,0.051819]
[1733864190046,0.052818,96428.0,96425.0,0.051819]
[1733864190248,0.003,96428.0,96427.0,0.4556534]
[1733864190549,0.09289243,96443.0,96438.0,0.051813]
[1733864190743,0.09289243,96443.0,96427.0,0.4038354]
[1733864190744,0.051809,96445.0,96444.0,0.051809]
[1733864192545,0.057809,96445.0,96444.0,0.051809]
[1733864193445,0.057809,96445.0,96444.0,0.052809]
[1733864193946,0.054809,96445.0,96444.0,0.052809]
[1733864194143,0.054809,96445.0,96444.0,0.001]
[1733864194854,0.051818,96428.0,96427.0,0.0015554]
[1733864195444,0.051818,96428.0,96412.0,0.0306]
[1733864195445,0.051822,96421.0,96413.0,0.051826]
[1733864195644,0.09289281,96420.0,96418.0,0.051823]
[1733864195850,0.09289281,96421.0,96418.0,0.051823]
[1733864196046,0.12385709,96425.0,96418.0,0.051823]
[1733864196047,0.051823,96419.0,96418.0,0.051823]
[1733864196248,0.050823,96419.0,96418.0,0.051823]
[1733864196944,0.050823,96419.0,96418.0,0.052823]
[1733864197454,0.051823,96419.0,96418.0,0.052823]
[1733864197662,0.052823,96419.0,96418.0,0.052823]
[1733864198746,0.002,96419.0,96418.0,0.052823]
[1733864200555,0.002,96419.0,96418.0,0.032823]
[1733864203856,0.053823,96419.0,96418.0,0.032823]
[1733864204156,0.053823,96419.0,96418.0,0.031823]
[1733864204356,0.002,96419.0,96418.0,0.031823]
[1733864204855,0.053823,96419.0,96418.0,0.031823]
[1733864205259,0.052823,96419.0,96418.0,0.031823]
[1733864205463,0.054823,96419.0,96418.0,0.031823]
[1733864206360,0.054823,96419.0,96415.0,0.04148]
[1733864206361,0.051824,96416.0,96415.0,0.04148]
[1733864206659,0.051825,96415.0,96414.0,0.051825]
[1733864206852,0.051825,96415.0,96412.0,0.0306]
[1733864206853,0.051826,96413.0,96412.0,0.0306]
[1733864207563,0.051826,96413.0,96412.0,0.082427]
[1733864208158,0.051826,96413.0,96412.0,0.123907]
[1733864208358,0.052826,96413.0,96412.0,0.123907]
[1733864209256,0.001,96413.0,96412.0,0.123907]
[1733864209665,0.052826,96413.0,96412.0,0.123907]
[1733864210058,0.001,96413.0,96412.0,0.123907]
[1733864210264,0.002,96413.0,96412.0,0.123907]
[1733864211762,0.053826,96413.0,96412.0,0.123907]
[1733864213573,0.36144,96417.0,96412.0,0.07208]
[1733864213871,0.0217302,96429.0,96428.0,0.051818]
[1733864214166,0.0210902,96429.0,96428.0,0.412618]
[1733864214366,0.0210902,96429.0,96428.0,0.454098]
[1733864214763,0.12385709,96440.0,96429.0,0.051817]
[1733864215062,0.00155604,96444.0,96443.0,0.05181]
[1733864215566,0.00155604,96444.0,96443.0,0.41261]
[1733864215767,0.00155604,96444.0,96443.0,0.45409]
[1733864215965,0.10326511,96450.0,96443.0,0.40228]
[1733864216170,0.10326511,96450.0,96449.0,0.051807]
[1733864217170,0.10426511,96450.0,96449.0,0.051807]
[1733864217671,0.10626511,96450.0,96449.0,0.051807]
[1733864218067,0.003,96450.0,96449.0,0.051807]
[1733864218959,0.008,96450.0,96449.0,0.051807]
[1733864220568,0.051812,96441.0,96440.0,0.051811]
[1733864221071,0.051812,96441.0,96437.0,0.40228]
[1733864221072,0.051813,96438.0,96437.0,0.00052]
[1733864221283,0.051817,96430.0,96424.0,0.05182]
[1733864221567,0.412617,96430.0,96423.0,0.0309]
[1733864221775,0.412617,96430.0,96427.0,0.051818]
[1733864222561,0.42309481,96430.0,96423.0,0.0309]
[1733864222761,0.37127781,96430.0,96421.0,0.051822]
[1733864222969,0.412621,96422.0,96421.0,0.051822]
[1733864223869,0.3608,96422.0,96421.0,0.051822]
[1733864224185,0.3608,96422.0,96411.0,0.0078]
[1733864224368,0.10326511,96421.0,96411.0,0.0078]
[1733864224669,0.051826,96414.0,96412.0,0.051826]
[1733864224863,0.10326511,96421.0,96411.0,0.0078]
[1733864225469,0.051823,96419.0,96416.0,0.051824]
[1733864225680,0.36444,96422.0,96411.0,0.0078]
[1733864225681,0.00364,96422.0,96411.0,0.0078]
[1733864225869,0.003,96422.0,96421.0,0.051822]
[1733864226064,0.003,96422.0,96420.0,0.051822]
[1733864226065,0.002,96421.0,96420.0,0.051822]
[1733864226465,0.002,96421.0,96420.0,0.093302]
[1733864226663,0.001,96421.0,96420.0,0.093302]
[1733864226866,0.001,96422.0,96421.0,0.051822]
[1733864227270,0.3618,96422.0,96421.0,0.051822]
[1733864228363,0.3608,96422.0,96420.0,0.04348]
[1733864228569,0.051822,96421.0,96420.0,0.002]
[1733864229071,0.051824,96416.0,96412.0,0.051826]
[1733864229770,0.051824,96416.0,96413.0,0.051826]
[1733864230372,0.052824,96416.0,96413.0,0.051826]
[1733864230670,0.001,96416.0,96414.0,0.093305]
[1733864231373,0.001,96416.0,96414.0,0.454105]
[1733864231773,0.003,96421.0,96414.0,0.454105]
[1733864231774,0.003,96421.0,96415.0,0.0307]
[1733864232074,0.051819,96426.0,96424.0,0.05182]
[1733864233477,0.051819,96426.0,96425.0,0.05182]
[1733864233674,0.054819,96426.0,96425.0,0.05182]
[1733864235267,0.051819,96426.0,96425.0,0.05182]
[1733864235473,0.054819,96426.0,96425.0,0.05282]
[1733864235673,0.003,96426.0,96425.0,0.05282]
[1733864237880,0.12388904,96441.0,96425.0,0.05282]
[1733864238079,0.12388904,96441.0,96440.0,0.051812]
[1733864238275,0.051807,96448.0,96441.0,0.051811]
[1733864238588,0.37115726,96442.0,96441.0,0.051811]
[1733864239169,0.3608,96442.0,96441.0,0.051811]
[1733864239384,0.00064,96450.0,96449.0,0.051807]
[1733864239679,0.00155586,96453.0,96452.0,0.051805]
[1733864239869,0.00219586,96453.0,96452.0,0.051805]
[1733864240077,0.00219586,96453.0,96452.0,0.093285]
[1733864240078,0.00064,96453.0,96452.0,0.093285]
[1733864240273,0.10326511,96460.0,96458.0,0.051802]
[1733864240274,0.01005038,96459.0,96458.0,0.051802]
[1733864240581,0.10326511,96460.0,96459.0,0.051801]
[1733864242282,0.16540115,96460.0,96459.0,0.051801]
[1733864242468,0.16540415,96460.0,96459.0,0.051801]
[1733864242873,0.18040415,96460.0,96459.0,0.052801]
[1733864244173,0.18040415,96460.0,96445.0,0.051808]
[1733864244174,0.051804,96459.0,96442.0,0.04148]
[1733864244371,0.051804,96459.0,96426.0,0.3608]
[1733864244372,0.12387422,96444.0,96428.0,0.0322]
[1733864244582,0.412619,96429.0,96428.0,0.0322]
[1733864244878,0.412619,96429.0,96428.0,0.08402]
[1733864245079,0.12387422,96433.0,96428.0,0.44482]
[1733864245280,0.3608,96459.0,96433.0,0.051817]
[1733864245281,0.3648,96459.0,96433.0,0.051817]
[1733864245481,0.3648,96459.0,96458.0,0.051804]
[1733864246280,0.3608,96459.0,96458.0,0.051804]
[1733864247686,0.3688,96459.0,96458.0,0.051804]
[1733864247985,0.3758,96459.0,96458.0,0.051804]
[1733864248284,0.25810789,96470.0,96458.0,0.051804]
[1733864248285,0.15484278,96470.0,96458.0,0.051804]
[1733864248581,0.00155548,96480.0,96479.0,0.051793]
[1733864248788,0.00155548,96480.0,96479.0,0.412593]
[1733864249685,0.00155548,96480.0,96479.0,0.454073]
[1733864249882,0.00155548,96480.0,96479.0,0.40228]
[1733864249883,0.051792,96480.0,96479.0,0.40228]
[1733864250085,0.3608,96482.0,96469.0,0.40228]
[1733864250385,0.051796,96475.0,96474.0,0.051795]
[1733864250786,0.051796,96475.0,96469.0,0.04148]
[1733864250787,0.11226511,96480.0,96469.0,0.04148]
[1733864250984,0.051798,96472.0,96471.0,0.051797]
[1733864251186,0.11226511,96480.0,96469.0,0.04148]
[1733864251187,0.051796,96474.0,96473.0,0.051796]
[1733864251375,0.051796,96475.0,96474.0,0.051795]
[1733864252692,0.051796,96475.0,96474.0,0.053795]
[1733864253193,0.293796,96475.0,96474.0,0.053795]
[1733864254797,0.293796,96475.0,96474.0,0.002]
[1733864258693,0.053796,96475.0,96474.0,0.002]
[1733864258885,0.002,96475.0,96474.0,0.053796]
[1733864259086,0.10326511,96500.0,96474.0,0.3628]
[1733864259398,0.10326511,96500.0,96494.0,0.051784]
[1733864259399,0.412584,96495.0,96494.0,0.051784]
[1733864259592,0.051784,96495.0,96494.0,0.051784]
[1733864261182,0.007,96495.0,96494.0,0.052784]
[1733864261594,0.005,96495.0,96494.0,0.051784]
[1733864261783,0.00155517,96510.0,96494.0,0.051784]
[1733864261784,0.00155517,96510.0,96509.0,0.051779]
[1733864262283,0.00155517,96510.0,96509.0,0.08561838]
[1733864262589,0.05333317,96510.0,96509.0,0.08561838]
[1733864262892,0.00455517,96510.0,96509.0,0.08561838]
[1733864263892,0.05633317,96510.0,96509.0,0.08561838]
[1733864264087,0.00455517,96510.0,96509.0,0.08561838]
[1733864264392,0.051764,96537.0,96536.0,0.051764]
[1733864264592,0.46406511,96540.0,96539.0,0.051763]
[1733864265196,0.15502711,96540.0,96539.0,0.051763]
[1733864266396,0.051764,96537.0,96536.0,0.002]
[1733864266692,0.412564,96537.0,96520.0,0.03383938]
[1733864266993,0.412564,96537.0,96516.0,0.051775]
[1733864266994,0.3608,96521.0,96516.0,0.051775]
[1733864267195,0.051774,96517.0,96516.0,0.051775]
[1733864268288,0.051774,96517.0,96510.0,0.03383938]
[1733864268289,0.36432001,96521.0,96510.0,0.03383938]
[1733864268597,0.3608,96551.0,96536.0,0.051764]
[1733864268791,0.3608,96551.0,96550.0,0.051757]
[1733864269193,0.3608,96551.0,96550.0,0.08503637]
[1733864270189,0.3658,96551.0,96550.0,0.08603637]
[1733864270792,0.3708,96551.0,96550.0,0.08603637]
[1733864271389,0.3658,96551.0,96550.0,0.08603637]
[1733864271693,0.3738,96551.0,96550.0,0.08703637]
[1733864272000,0.00155406,96563.0,96550.0,0.03527937]
[1733864272298,0.051739,96584.0,96583.0,0.051739]
[1733864272695,0.051739,96585.0,96581.0,0.05174]
[1733864272901,0.02080992,96584.0,96583.0,0.051739]
[1733864273597,0.02080992,96584.0,96578.0,0.3608]
[1733864273895,0.05174,96581.0,96578.0,0.412542]
[1733864274596,0.3608,96580.0,96572.0,0.051745]
[1733864274798,0.3608,96580.0,96562.0,0.3608]
[1733864274799,0.051742,96579.0,96565.0,0.051748]
[1733864274994,0.3924,96580.0,96567.0,0.051747]
[1733864274995,0.051746,96570.0,96567.0,0.051747]
[1733864275194,0.15444638,96575.0,96567.0,0.051747]
[1733864275195,0.051747,96568.0,96567.0,0.051747]
[1733864275390,0.15444638,96575.0,96562.0,0.3608]
[1733864275702,0.05175,96563.0,96562.0,0.3608]
[1733864276793,0.05175,96563.0,96562.0,0.41255]
[1733864278095,0.05275,96563.0,96562.0,0.41255]
[1733864278302,0.001,96563.0,96562.0,0.41255]
[1733864278993,0.05275,96563.0,96562.0,0.41255]
[1733864280392,0.001,96563.0,96562.0,0.41255]
[1733864280705,0.05275,96563.0,96562.0,0.41255]
[1733864282399,0.001,96563.0,96562.0,0.41255]
[1733864284009,0.001,96563.0,96555.0,0.03172531]
[1733864284010,0.051754,96556.0,96555.0,0.03172531]
[1733864286401,0.053754,96556.0,96555.0,0.03172531]
[1733864287303,0.053754,96556.0,96555.0,0.08347931]
[1733864287510,0.053754,96556.0,96555.0,0.03172531]
[1733864290197,0.051761,96542.0,96541.0,0.3608]
[1733864290401,0.051761,96542.0,96531.0,0.00155381]
[1733864290402,0.051767,96532.0,96531.0,0.00155381]
[1733864290609,0.3608,96532.0,96511.0,0.051778]
[1733864290910,0.3608,96532.0,96508.0,0.3608]
[1733864290911,0.051779,96509.0,96508.0,0.3608]
[1733864292302,0.051779,96509.0,96508.0,0.3678]
[1733864293402,0.051779,96509.0,96508.0,0.3698]
[1733864293609,0.412579,96509.0,96508.0,0.009]
[1733864294003,0.77316711,96509.0,96480.0,0.00155463]
[1733864294302,0.051792,96484.0,96480.0,0.00155463]
[1733864294507,0.412592,96484.0,96480.0,0.00155463]
[1733864294699,0.56705106,96484.0,96480.0,0.00155463]
[1733864295306,0.56705106,96484.0,96466.0,0.0331]
[1733864295307,0.412592,96484.0,96466.0,0.0331]
[1733864295499,0.412592,96484.0,96466.0,0.084901]
[1733864295903,0.412592,96484.0,96483.0,0.00110084]
[1733864296503,0.414592,96484.0,96483.0,0.00110084]
[1733864296901,0.051795,96479.0,96458.0,0.3608]
[1733864297206,0.051803,96464.0,96459.0,0.051805]
[1733864297510,0.051802,96466.0,96462.0,0.051804]
[1733864297807,0.3608,96475.0,96462.0,0.051804]
[1733864297808,0.051802,96465.0,96462.0,0.051804]
[1733864298007,0.3608,96475.0,96462.0,0.051804]
[1733864298008,0.051803,96464.0,96462.0,0.051804]
[1733864298400,0.15463504,96472.0,96459.0,0.03172531]
[1733864298599,0.051803,96464.0,96459.0,0.08353131]
[1733864298805,0.051803,96464.0,96462.0,0.008]
[1733864299302,0.051804,96463.0,96462.0,0.008]
[1733864299506,0.051804,96463.0,96462.0,0.011]
[1733864300812,0.051804,96463.0,96462.0,0.01]
[1733864301201,0.052804,96463.0,96462.0,0.01]
[1733864301815,0.053804,96463.0,96462.0,0.002]
[1733864302315,0.002,96463.0,96462.0,0.002]
[1733864302610,0.002,96463.0,96459.0,0.03172531]
[1733864302804,0.051805,96460.0,96459.0,0.03172531]
[1733864305910,0.053805,96460.0,96459.0,0.03172531]
[1733864306508,0.051805,96460.0,96459.0,0.03172531]
[1733864306710,0.053805,96460.0,96459.0,0.03172531]
[1733864307003,0.051806,96459.0,96458.0,0.3608]
[1733864307213,0.051806,96459.0,96458.0,0.39252531]
[1733864308305,0.051806,96459.0,96458.0,0.3608]
[1733864308611,0.05181,96451.0,96450.0,0.3608]
[1733864308814,0.05181,96451.0,96438.0,0.03]
[1733864309013,0.05181,96451.0,96441.0,0.03172531]
[1733864309218,0.051815,96442.0,96441.0,0.08354031]
[1733864309612,0.05192192,96442.0,96441.0,0.03172531]
[1733864310620,0.05192192,96442.0,96441.0,0.08554031]
[1733864311717,0.05292192,96442.0,96441.0,0.09254031]
[1733864313017,0.05292192,96442.0,96441.0,0.04072531]
[1733864313512,0.05292192,96442.0,96441.0,0.009]
[1733864314710,0.051816,96440.0,96421.0,0.0324]
[1733864314920,0.051817,96438.0,96421.0,0.0324]
[1733864315119,0.0329,96441.0,96412.0,0.051831]
[1733864315313,0.051831,96411.0,96407.0,0.0324]
[1733864315514,0.051834,96407.0,96406.0,0.3608]
[1733864315922,0.051834,96407.0,96406.0,0.39252531]
[1733864316613,0.051834,96407.0,96406.0,0.39752531]
[1733864317023,0.051834,96407.0,96406.0,0.44935931]
[1733864317227,0.051834,96407.0,96406.0,0.44435931]
[1733864317519,0.051834,96407.0,96406.0,0.44735931]
[1733864317913,0.052834,96407.0,96406.0,0.45635931]
[1733864318621,0.001,96407.0,96406.0,0.45635931]
[1733864318821,0.052833,96407.0,96406.0,0.45635931]
[1733864323122,0.052833,96407.0,96406.0,0.40452531]
[1733864323514,0.052833,96407.0,96406.0,0.45635931]
[1733864324216,0.001,96407.0,96406.0,0.45635931]
[1733864324720,0.12269473,96427.0,96406.0,0.45635931]
[1733864324721,0.051828,96417.0,96406.0,0.40252531]
[1733864324920,0.001,96407.0,96406.0,0.422634]
[1733864325120,0.001,96407.0,96406.0,0.782434]
[1733864325424,0.001,96407.0,96406.0,0.81415931]
[1733864325813,0.051826,96421.0,96420.0,0.051826]
[1733864326029,0.051826,96421.0,96420.0,0.412626]
[1733864327917,0.051826,96421.0,96406.0,0.00972]
[1733864328228,0.051826,96421.0,96350.0,0.02945487]
[1733864328229,0.3608,96380.0,96350.0,0.02945487]
[1733864328425,0.051881,96319.0,96306.0,0.051888]
[1733864328645,0.3608,96307.0,96300.0,0.05671248]
[1733864328930,0.05592831,96306.0,96300.0,0.05671248]
[1733864329126,0.05592937,96305.0,96303.0,0.051889]
[1733864329426,8.877e-05,96306.0,96305.0,0.051888]
[1733864329829,8.877e-05,96306.0,96300.0,0.03682332]
[1733864330035,8.877e-05,96306.0,96305.0,0.051888]